Cogmind - Beta 16 @@@ ROGUE MODE // 2025.12.30 @ 15:28:49 Player: ILikeVoltron Result: Destroyed by H-55 Commando with Gauss Rifle Performance ------------- Evolutions (3) 1500 Regions Visited (6) 1200 Robots Destroyed (62) 310 Value Destroyed (1634) 1634 Prototype IDs (3) 60 Alien Tech Used (0) 0 Bonus (0) 0 TOTAL SCORE: 4704 Bonus ------- None Cogmind --------- Core Integrity 0/700 Matter 169/300 Energy 50/100 System Corruption 7% Temperature Cool (0) Movement Rolling (90) Location -7/Factory Parts ------- > --- POWER (1) -------- (None) > --- PROPULSION (4) --- Wheel Compact Wheel > --- UTILITY (5) ------ Terrain Scanner Advanced Terrain Scan Processor > --- WEAPON (3) ------- Heavy Assault Rifle Heavy Assault Rifle Heavy Assault Rifle > --- INVENTORY (5) ---- Small Storage Unit Structural Scanner Transmission Jammer ECM Suite High-powered Shotgun Peak State ------------ > --- POWER ------------ Improved Ion Engine > --- PROPULSION ------- Armored Treads Armored Treads Medium Treads Medium Treads > --- UTILITY ---------- Improved Cooling System High-capacity Storage Unit Advanced Terrain Scan Processor Transmission Jammer Hardened Medium Armor Plating > --- WEAPON ----------- Medium Laser Particle Gun Grenade Launcher > --- INVENTORY -------- Light Nuclear Core Light Treads Surge Thruster Small Storage Unit Compact Matter Pod Structural Scanner Machine Analyzer Improved Terrain Scanner Transmission Jammer ECM Suite Medium Laser Light Assault Rifle High-powered Shotgun Shock Bomb Launcher Shock Bomb Launcher Grenade Launcher Grenade Launcher Mining Laser Great Maul [Rating: 40] Favorites ----------- Power Light Ion Engine Engine Light Ion Engine Power Core Light Nuclear Core Propulsion Light Treads Treads Light Treads Leg Aluminum Leg Wheel Armored Huge Wheel Flight Unit Surge Thruster Utility High-capacity Storage Unit Device Improved Heat Sink Storage High-capacity Storage Unit Processor Advanced Terrain Scan Processor Protection Hardened Medium Armor Plating Weapon Medium Laser Energy Gun Medium Laser Ballistic Gun Light Assault Rifle Launcher Shock Bomb Launcher Special Weapon Mining Laser Build | -11 -10 -9 -8 -7 -7 -7 ------- Run | Yrd Mat Mat Mat Fac Was Fac Slots Evolved 6 | . . 2 2 2 . . Power . | . . . . . . . Propulsion 2 | . . 1 1 . . . Utility 3 | . . 1 . 2 . . Weapon 1 | . . . 1 . . . Parts Attached 70 | 1 15 12 14 10 1 17 Power 9 | . 1 3 3 . . 2 Engine 8 | . 1 3 2 . . 2 Core 1 | . . . 1 . . . Reactor . | . . . . . . . Propulsion 21 | . 4 3 6 4 . 4 Treads 13 | . 2 3 5 3 . . Leg 2 | . 2 . . . . . Wheel 5 | . . . . 1 . 4 Hover . | . . . . . . . Flight 1 | . . . 1 . . . Utility 21 | 1 4 3 3 4 1 5 Device 10 | 1 2 1 1 2 . 3 Storage 4 | . 2 1 . . . 1 Processor 3 | . . . . 2 . 1 Hackware . | . . . . . . . Protection 4 | . . 1 2 . 1 . Artifact . | . . . . . . . Weapon 19 | . 6 3 2 2 . 6 Energy Gun 6 | . 3 2 1 . . . Energy Cannon . | . . . . . . . Ballistic Gun 8 | . 2 . . . . 6 Ballistic Cannon . | . . . . . . . Launcher 4 | . . 1 1 2 . . Special Weapon 1 | . 1 . . . . . Impact Weapon . | . . . . . . . Slashing Weapon . | . . . . . . . Piercing Weapon . | . . . . . . . Special Melee Weapon . | . . . . . . . Unidentified Prototypes 1 | . . . 1 . . . Parts Lost 33 | . 3 1 6 11 . 12 Power 5 | . . 1 1 1 . 2 Propulsion 11 | . 1 . 1 6 . 3 Utility 6 | . . . 1 1 . 4 Weapon 11 | . 2 . 3 3 . 3 Highest Loss Streak 12 | . 2 1 2 9 . 12 To Critical Strikes . | . . . . . . . Average Backups 15 | 6 15 19 19 16 5 5 Power 1 | 1 1 . . 1 . . Propulsion 2 | 4 3 3 1 2 . . Utility 4 | . 3 4 5 5 4 4 Weapon 7 | 1 6 10 11 6 1 1 Tool/Special . | . . . . . . . Unused Backups 27 | 6 6 2 3 6 . 4 Power 4 | 1 . 1 . 2 . . Propulsion 6 | 2 3 1 . . . . Utility 8 | 1 . . 3 1 . 3 Weapon 9 | 2 3 . . 3 . 1 Tool/Special . | . . . . . . . Average Slot Usage (%) 87 | . 99 99 98 71 11 39 Engine 8 | . 14 11 4 5 . . Core 1 | . . . 4 . . . Treads 23 | . 21 33 35 22 . . Leg 2 | . 6 . . . . . Wheel 1 | . . . . . 7 11 Device 12 | . 12 17 9 12 . 9 Storage 10 | . 15 13 9 5 . 2 Protection 2 | . . 1 8 2 3 4 Energy Gun 16 | . 16 19 26 12 . . Ballistic Gun 1 | . 3 . . . . 3 Special Weapon 2 | . 6 . . . . . Peak Build Rating 40 | 9 11 16 24 40 14 37 Average Rating 15 | 7 10 14 20 25 11 21 On Entrance 12 | 6 9 11 16 23 9 14 Avg Prop Armor Cover (%) 7 | . . . . 7 . . Naked Turns 48 | . . . . 48 . . Heaviest Build 66 | 15 48 56 63 66 8 13 Greatest Support 96 | 20 40 60 80 96 28 56 Greatest Overweight (x) 2 | . 1 . . . . 2 Average Overweight (x) . | . . . . . . . Largest Inventory Capacity 20 | 8 20 20 20 20 5 5 Average Capacity 16 | 8 17 20 20 16 5 5 Most Carried 20 | 8 20 20 20 20 5 5 Average Carried 15 | 6 15 19 19 15 5 5 Final Capacity 20 | 8 20 20 20 5 5 5 Final Carried 20 | 8 20 20 20 5 5 5 Class Distribution -------------------- 60% | Mutant 20% | Scavenger-Tank 12% | Scavenger-Mutant 3% | Scavenger-Skirmisher Dominant Class ---------------- Mutant | -10/Materials Mutant | -9/Materials Scavenger-Tank | -8/Materials Mutant | -7/Factory Mutant | -7/Waste Mutant | -7/Factory Resources | -11 -10 -9 -8 -7 -7 -7 ----------- Run | Yrd Mat Mat Mat Fac Was Fac Matter Collected 1483 | 303 171 209 354 100 . 346 Remotely . | . . . . . . . Salvage Created 2187 | 152 234 607 723 353 . 118 Parts 123 | 6 14 38 37 18 . 10 Haulers Intercepted 2 | . 1 1 . . . . Recyclers Shooed 4 | . 2 1 . 1 . . Parts Field Recycled . | . . . . . . . Retrieved Matter . | . . . . . . . Parts Self-Destructed . | . . . . . . . Prevented . | . . . . . . . Parts Restored . | . . . . . . . Kills | -11 -10 -9 -8 -7 -7 -7 ------- Run | Yrd Mat Mat Mat Fac Was Fac Combat Hostiles Destroyed 44 | . 6 14 17 5 . 2 Guns 33 | . 6 9 15 1 . 2 AOE 8 | . . 4 . 4 . . Classes Destroyed 11 | 3 4 1 1 1 . 1 Worker 6 | 2 . . 1 3 . . Builder 7 | . 1 2 . 3 . 1 Tunneler 1 | 1 . . . . . . Hauler 2 | . 1 1 . . . . Recycler 2 | 1 . . . 1 . . Swarmer 12 | . 3 6 3 . . . Cutter 2 | . . . 2 . . . Grunt 19 | . 3 4 8 4 . . Sentry 8 | . . 4 4 . . . Hunter 1 | . . . . . . 1 Programmer 2 | . . . . 1 . 1 Best Kill Streak 6 | 2 3 3 6 6 . 1 Combat Bots Only 5 | . 3 3 5 4 . 1 Max Kills in Single Turn 3 | 1 1 2 2 3 . 1 Gunslinging 1 | . . 1 . . . . Exploded 2 | . . 2 . 2 . . Melee . | . . . . . . . Uniques/NPCs Destroyed . | . . . . . . . Combat | -11 -10 -9 -8 -7 -7 -7 -------- Run | Yrd Mat Mat Mat Fac Was Fac Hostile Shots Fired 673 | . 61 104 116 129 1 262 Missed 214 | . 17 36 38 40 . 83 Hits 459 | . 44 68 78 89 1 179 Melee 3 | . . . 2 . 1 . Projectile 456 | . 44 68 76 89 . 179 Critical Strikes 10 | . . 2 2 3 1 2 Damage Taken 6072 | . 419 736 1162 1991 49 1715 Core 1075 | . 46 114 207 287 . 421 Absorbed by Shields . | . . . . . . . Ignored by Resistances 45 | . . 11 34 . . . Core Remaining (%) 78 | 100 81 71 62 . . . Volleys Fired 213 | 8 60 39 49 29 . 28 Largest 3 | 2 2 2 3 3 . 3 Hottest 165 | 100 150 100 165 165 . 71 Shots Fired 431 | 16 98 78 146 53 . 40 Gun 383 | 16 78 71 145 33 . 40 Cannon . | . . . . . . . Launcher 27 | . . 6 1 20 . . Special 21 | . 20 1 . . . . Kinetic 56 | . 16 . . . . 40 Thermal 348 | 16 82 72 145 33 . . Explosive 13 | . . . 1 12 . . Electromagnetic 14 | . . 6 . 8 . . Robot Hit Streak 16 | 6 7 9 16 12 . 9 Robot Miss Streak 4 | 2 4 4 3 2 . 2 Penetration Max . | . . . . . . . Secondary Targets 6 | . 1 2 2 . . 1 Max Gunslinging Chain 1 | . 1 1 1 . . 1 Shots Hit Robots 286 | 10 47 54 105 38 . 32 Core Hits 124 | 5 15 26 40 29 . 9 Critical Kills . | . . . . . . . Critical Parts Destroyed 1 | . . . . . . 1 Critical Strikes 22 | 3 1 7 9 1 . 1 Burn 21 | 3 1 7 9 1 . . Destroy 1 | . . . . . . 1 Melee Attacks . | . . . . . . . Impact . | . . . . . . . Slashing . | . . . . . . . Piercing . | . . . . . . . Sneak Attacks . | . . . . . . . Combat Hostiles . | . . . . . . . Follow-up Attacks . | . . . . . . . Damage Inflicted 4711 | 125 537 896 1368 1342 . 443 Guns 3429 | 125 537 669 1347 309 . 442 Cannons 11 | . . . 11 . . . Explosions 1270 | . . 227 10 1033 . . Melee . | . . . . . . . Ramming 1 | . . . . . . 1 Kinetic 532 | . 90 . . . . 442 Thermal 2975 | 125 447 709 1347 347 . . Explosive 652 | . . . 10 642 . . Electromagnetic 540 | . . 187 . 353 . . Impact 11 | . . . 11 . . . Slashing . | . . . . . . . Piercing . | . . . . . . . Highest Corruption 7 | . 2 4 . . 7 7 Average Corruption 3 | . 1 3 . . 7 7 Corruption Purged . | . . . . . . . Corruption Blocked . | . . . . . . . Effects 34 | . 14 3 . . 3 14 Message Errors 8 | . 3 . . . 1 4 Matter Fused 6 | . 3 . . . 1 2 Heat Flow Errors 4 | . 1 1 . . . 2 Energy Discharges 4 | . . . . . 1 3 Data Loss (minor) 5 | . 4 1 . . . . Data Loss (major) 1 | . . . . . . 1 Misfires 2 | . 1 1 . . . . Alerts 2 | . 2 . . . . . Weapon Failures 2 | . . . . . . 2 Overload Shots . | . . . . . . . Overflow Damage 68 | . . 9 . 59 . . Projectiles . | . . . . . . . Explosions 68 | . . 9 . 59 . . Melee . | . . . . . . . Knockbacks . | . . . . . . . Impact . | . . . . . . . Kinetic . | . . . . . . . Secondary . | . . . . . . . Self-Inflicted Damage 301 | . . 20 19 262 . . Shots 9 | . . 1 1 7 . . Rammed 1 | . . . . . . 1 Targets Rammed 1 | . . . . . . 1 Kicked . | . . . . . . . Crushed . | . . . . . . . Highest Temperature 497 | 156 481 89 497 447 . 191 Average Temperature 131 | 51 174 15 137 231 . 77 Received Heat Transfer 1620 | . 111 267 567 357 . 318 Effects 13 | . 4 . 5 4 . . Shutdowns 3 | . 1 . 2 . . . Energy Bleed 4 | . . . 2 2 . . Interference 2 | . 2 . . . . . Matter Decay 2 | . . . 1 1 . . Short Circuit 1 | . . . . 1 . . Damage (minor) 1 | . 1 . . . . . Siege Activations . | . . . . . . . Martial Activations . | . . . . . . . Shielding Activations . | . . . . . . . Robots Disrupted . | . . . . . . . Combat Hostiles . | . . . . . . . Robots Corrupted . | . . . . . . . Combat Hostiles . | . . . . . . . Parts Fried 1 | . . 1 . . . . Impact Corruptions . | . . . . . . . Robots Melted 3 | . . 1 2 . . . Combat Hostiles 3 | . . 1 2 . . . Parts Melted 32 | 1 1 11 17 2 . . Heat Transferred 10016 | 592 1406 2529 4551 938 . . Parts Sabotaged . | . . . . . . . Parts Stolen . | . . . . . . . Parts Stripped . | . . . . . . . Power Chain Reactions 3 | . . 1 . 2 . . Alert | -11 -10 -9 -8 -7 -7 -7 ------- Run | Yrd Mat Mat Mat Fac Was Fac Maximum Alert Level 1 | . . . . 1 . . Low Security (%) 97 | 100 100 100 100 77 100 100 Level 1 2 | . . . . 22 . . Level 2 . | . . . . . . . Level 3 . | . . . . . . . Level 4 . | . . . . . . . Level 5 . | . . . . . . . High Security . | . . . . . . . Max Security . | . . . . . . . Peak Influence 232 | 5 146 180 158 232 67 60 Initial 67 | . 3 . 49 49 67 18 Average 61 | 1 28 107 89 134 50 3 Influence Increases 1645 | 20 290 380 455 405 . 95 Destroy 0b10 Robot/C 880 | . 120 280 340 100 . 40 Destroy 0b10 Robot/NC 90 | 20 10 15 5 35 . 5 Destroy Leader 214 | . 32 62 80 20 . 20 Successful Hack 46 | . 33 5 8 . . . Disable Machine 75 | . . 15 . 60 . . Destroy Structure 85 | . 20 3 7 55 . . Lose Combat Pursuer 255 | . 75 . 15 135 . 30 Influence Decreases 1585 | 15 295 262 463 321 167 62 Entered New Map 268 | . 2 . 69 61 127 9 Time Decay 1087 | 15 263 252 334 150 40 33 Lost Part 230 | . 30 10 60 110 . 20 Squads Dispatched 14 | . 1 1 6 4 . 2 Investigation 1 | . . . . . . 1 Extermination 1 | . . . . 1 . . Reinforcement 9 | . 1 1 3 3 . 1 Assault . | . . . . . . . Garrison 3 | . . . 3 . . . Intercept . | . . . . . . . Searches Triggered . | . . . . . . . Construction Impeded 1 | . . . . 1 . . Haulers Reinforced . | . . . . . . . Active Scanning Responses . | . . . . . . . Cargo Convoy Interrupts . | . . . . . . . Stealth | -11 -10 -9 -8 -7 -7 -7 --------- Run | Yrd Mat Mat Mat Fac Was Fac Distress Signals 5 | . . 1 3 . . 1 Communications Jammed . | . . . . . . . Distress Signals . | . . . . . . . Times Spotted 91 | . 19 19 23 15 4 11 Peak Tracking Total 7 | . 7 5 5 6 4 5 Tactical Retreats 12 | . 4 1 1 5 . 1 ECM-based Alert Blocks 1 | . . 1 . . . . Traps | -11 -10 -9 -8 -7 -7 -7 ------- Run | Yrd Mat Mat Mat Fac Was Fac Traps Triggered 5 | . 2 2 . 1 . . Indirectly . | . . . . . . . Trap Hack Attempts . | . . . . . . . Triggered . | . . . . . . . Disarmed . | . . . . . . . Reprogrammed . | . . . . . . . Reused . | . . . . . . . Traps Extracted . | . . . . . . . Installed . | . . . . . . . Triggered . | . . . . . . . Machines | -11 -10 -9 -8 -7 -7 -7 ---------- Run | Yrd Mat Mat Mat Fac Was Fac Machines Disabled 5 | . . 1 . 4 . . Max in Single Turn 4 | . . 1 . 4 . . Machines Repaired . | . . . . . . . Machines Dismantled . | . . . . . . . Machines Sabotaged . | . . . . . . . Overloaded Fab Kills . | . . . . . . . Hacking | -11 -10 -9 -8 -7 -7 -7 --------- Run | Yrd Mat Mat Mat Fac Was Fac Machines Accessed 14 | . 8 1 3 1 . 1 Terminals 11 | . 7 1 3 . . . Fabricators 1 | . . . . 1 . . Repair Stations . | . . . . . . . Recycling Units 2 | . 1 . . . . 1 Scanalyzers . | . . . . . . . Garrison Access . | . . . . . . . Total Hacks 35 | . 21 4 5 1 . 4 Successful 20 | . 15 1 3 . . 1 Failed 15 | . 6 3 2 1 . 3 Catastrophic 5 | . . 2 1 . . 2 Database Lockouts . | . . . . . . . Manual 14 | . 9 2 3 . . . Terminals 28 | . 19 4 5 . . . Fabricators 1 | . . . . 1 . . Repair Stations . | . . . . . . . Recycling Units 6 | . 2 . . . . 4 Scanalyzers . | . . . . . . . Garrison Access . | . . . . . . . Terminal Hacks 13 | . 9 1 3 . . . Record 1 | . . . 1 . . . Part Schematic 3 | . 3 . . . . . Prototype ID Bank 1 | . . 1 . . . . Branch Access Points 2 | . 1 . 1 . . . Terminal Index 1 | . 1 . . . . . Alert Level 2 | . 1 . 1 . . . Locate Traps 1 | . 1 . . . . . Registered Components 1 | . 1 . . . . . Zone Layout 1 | . 1 . . . . . Fabricator Hacks . | . . . . . . . Repair Station Hacks . | . . . . . . . Recycling Unit Hacks 3 | . 2 . . . . 1 Report Inventory 2 | . 1 . . . . 1 Retrieve Components 1 | . 1 . . . . . Scanalyzer . | . . . . . . . Garrison Access Hacks . | . . . . . . . Unauthorized Hacks 4 | . 4 . . . . . Terminals 4 | . 4 . . . . . Botnet 4 | . 4 . . . . . Fabricators . | . . . . . . . Repair Stations . | . . . . . . . Recycling Units . | . . . . . . . Scanalyzers . | . . . . . . . Garrison Access . | . . . . . . . Data Cores Recovered . | . . . . . . . Used . | . . . . . . . Hacking Detections 12 | . 7 1 3 . . 1 Full Trace Events 1 | . . . . . . 1 Feedback Events . | . . . . . . . Feedback Blocked . | . . . . . . . Robot Schematics Acquired . | . . . . . . . Robots Built . | . . . . . . . Authchips . | . . . . . . . Time . | . . . . . . . Total Robot Build Rating . | . . . . . . . Part Schematics Acquired 3 | . 3 . . . . . Parts Built . | . . . . . . . Authchips . | . . . . . . . Time . | . . . . . . . Total Part Build Rating . | . . . . . . . Part Studies Acquired . | . . . . . . . Parts Repaired . | . . . . . . . Time . | . . . . . . . Parts Recycled . | . . . . . . . Recycled Matter . | . . . . . . . Retrieved Matter . | . . . . . . . Retrieved Components 10 | . 10 . . . . . Parts Scanalyzed . | . . . . . . . Part Schematics Acquired . | . . . . . . . Parts Damaged . | . . . . . . . Bothacking | -11 -10 -9 -8 -7 -7 -7 ------------ Run | Yrd Mat Mat Mat Fac Was Fac Used RIF Installer . | . . . . . . . Robots Hacked . | . . . . . . . Non-combat . | . . . . . . . Combat . | . . . . . . . Robot Hacks Applied . | . . . . . . . Relay Couplers Released . | . . . . . . . Fabnet Peak Effective % . | . . . . . . . Robots Rewired . | . . . . . . . Allies Hacked . | . . . . . . . Hacks Repelled . | . . . . . . . Allies | -11 -10 -9 -8 -7 -7 -7 -------- Run | Yrd Mat Mat Mat Fac Was Fac Total Allies . | . . . . . . . Largest Group . | . . . . . . . Highest-Rated Group . | . . . . . . . Highest-Rated Ally . | . . . . . . . Total Orders . | . . . . . . . Ally Attacks . | . . . . . . . Total Damage . | . . . . . . . Kills . | . . . . . . . Allies Corrupted . | . . . . . . . Allies Melted . | . . . . . . . Intel | -11 -10 -9 -8 -7 -7 -7 ------- Run | Yrd Mat Mat Mat Fac Was Fac Active Infowar (turns) 943 | 51 290 343 65 81 . 113 Sensors 26 | . . . . . . 26 Terrain 787 | 51 290 232 65 62 . 87 Machine Analysis 17 | . . . . 17 . . Jamming 64 | . . . . 64 . . ECM 111 | . . 111 . . . . Robot Analysis Total . | . . . . . . . Derelict Logs Recovered . | . . . . . . . Drone Launches . | . . . . . . . Drone Recoveries . | . . . . . . . Exploration | -11 -10 -9 -8 -7 -7 -7 ------------- Run | Yrd Mat Mat Mat Fac Was Fac Turns Passed 3436 | 131 1233 574 744 319 83 352 Spaces Moved 1607 | 45 456 250 326 203 82 245 Core 97 | . . . . 95 . 2 Treads 986 | . 333 250 326 77 . . Legs 168 | 45 123 . . . . . Wheels 356 | . . . . 31 82 243 Hover . | . . . . . . . Flight . | . . . . . . . Fastest Speed 50 | 120 120 160 160 50 100 80 Average Speed 152 | 120 208 160 160 100 100 96 Slowest Speed 240 | 120 240 160 162 165 100 150 Overloaded Moves . | . . . . . . . Propulsion Burnouts . | . . . . . . . Robots Hopped . | . . . . . . . Potential Cave-ins . | . . . . . . . Cave-ins Triggered . | . . . . . . . Exploration Rate (%) 34 | 5 83 27 35 10 71 11 Regions Visited 6 Branch Regions . Pre-discovered Areas . | . . . . . . . Known Exits Taken . | . . . . . . . Unknown Exits Taken 4 | 1 1 1 1 . . . Scrap Searched . | . . . . . . . Spaces Dug 20 | . 20 . . . . . Terrain Destroyed 97 | . 20 3 5 69 . . Melee . | . . . . . . . Projectile 20 | . 20 . . . . . AOE 77 | . . 3 5 69 . . Terrain Rammed . | . . . . . . . Walls Destroyed . | . . . . . . . Machines Disabled . | . . . . . . . Actions | -11 -10 -9 -8 -7 -7 -7 --------- Run | Yrd Mat Mat Mat Fac Was Fac Total 2178 | 105 605 349 442 273 82 322 Wait 198 | 50 44 26 30 17 . 31 Move 1602 | 44 455 249 325 203 81 245 Hop . | . . . . . . . Pick Up 44 | 2 18 8 10 6 . . Fast Attach 27 | 1 3 1 2 2 1 17 Attach 18 | . . 3 9 6 . . Detach 2 | . . 1 1 . . . Swap 41 | . 16 11 8 6 . . Drop 32 | . 9 11 8 4 . . Fire 213 | 8 60 39 49 29 . 28 Melee . | . . . . . . . Ram 1 | . . . . . . 1 Kick . | . . . . . . . Crush . | . . . . . . . Escape Stasis . | . . . . . . . Rewire . | . . . . . . . Trap . | . . . . . . . Miscellaneous . | . . . . . . . Route ------- -11/Scrapyard -10/Materials (discovered 5 exits: *Mat x3 / *Min x2) -9/Materials (discovered 2 exits: *Mat / [*Min]) -8/Materials (discovered 2 exits: *Fac / Sto) -7/Factory -7/Waste -7/Factory History --------- Turn | Location | Event 38 | -11/Scrapyard | Discovered new exit (range 3) 132 | -11/Scrapyard | Entered Materials 173 | -10/Materials | Identified exit to Mines 302 | -10/Materials | Build established: Mutant 423 | -10/Materials | Discovered new exit (range 16) 943 | -10/Materials | Discovered new exit (range 3) 1296 | -10/Materials | Discovered new exit (range 7) 1365 | -10/Materials | Entered another Materials area 1365 | -9/Materials | Evolved 2 slots: Propulsion x1, Utility x1 1437 | -9/Materials | Discovered new exit (range 15) 1814 | -9/Materials | Discovered new exit (range 16) 1939 | -9/Materials | Entered another Materials area 1939 | -8/Materials | Evolved 2 slots: Propulsion x1, Weapon x1 2283 | -8/Materials | Build established: Scavenger-Tank 2418 | -8/Materials | Garrison activated, responded to threat 2571 | -8/Materials | Identified exit to Storage 2673 | -8/Materials | Discovered new exit (range 7) 2683 | -8/Materials | Entered Factory 2683 | -7/Factory | Evolved 2 slots: Utility x2 2921 | -7/Factory | Released all parts (7) 2950 | -7/Factory | Lost 9 parts (1p4n1u3w) 3002 | -7/Factory | Manually triggered Chute Trap 3002 | -7/Factory | Sucked down chute 3002 | -7/Factory | Entered Waste 3012 | -7/Waste | Spotted C-40 Crusher 3017 | -7/Waste | EMP discharged 3022 | -7/Waste | Spotted C-40 Crusher 3044 | -7/Waste | Spotted C-40 Crusher 3046 | -7/Waste | Spotted C-40 Crusher 3053 | -7/Waste | Spotted C-40 Crusher 3074 | -7/Waste | Discovered new exit (range 12) 3085 | -7/Waste | Entered Factory 3173 | -7/Factory | Build established: Mutant 3292 | -7/Factory | Core integrity fell below 50% 3341 | -7/Factory | Core integrity fell below 20% 3401 | -7/Factory | Lost 12 parts (2p3n4u3w) 3437 | -7/Factory | Destroyed by H-55 Commando with Gauss Rifle Last Messages --------------- 03424_ K-01 Serf collects debris. 03424_ Acquired Hvy. Assault Rifle. 03424_ K-01 Serf destroyed. 03427_ Acquired Hvy. Assault Rifle. 03427_ K-01 Serf cleans the Assembly Bed. 03428_ K-01 Serf collects debris. 03429_ System corrupted: Energy discharge (-29). 03429_ Acquired Hvy. Assault Rifle. 03431_ P-60 Hacker suffers critical hit (Destroy). 03431_ Destroyed Gravmag System. 03431_ H-55 Commando deploys Drone. 03431_ Penetrated by Slug. 03431_ Drone sends a signal. 03431_ H-55 Commando retrieves Drone. 03432_ K-01 Serf collects debris. 03434_ P-60 Hacker destroyed. 03434_ Switching to secondary target: H-55 Commando. 03435_ K-01 Serf collects debris. 03437_ K-01 Serf cleans the Assembly Bed. 03437_ Penetrated by Slug. Map ----- +----------------------------------------------------+ | ? ?? +???????????????????????????????????????? | | ?#?# #???????????????????????????????????????? | | #?## #???????????????????????????????????????? | | ???# # ? ???????????????????????????????????? | | ?##? #???????????????????????????????????????? | | #### #???????????????????????????????????????? | | #???????????????????????????????????????? | | # ????"?????????????????????????????????? | | + ??????????????????????????????????????? | | """ #???????????????????????????????????????? | | """ #? ?????????????????????????????????????? | | ## """ # ?? ??????????????????????????????????? | | ?# #??? ?????? ???????##???????????????????? | | ## +??? ?????? ??#?#?#????????????????????? | | ## ##### ##???#??######????#?????????????????????? | | ## #?#?#?###?##?# ##??#??#??????????????????? | | ?# ####?????#????"" #?#??#???#????????????????? | | ## #####+########"T ???#??????????????????????? | | ?# # #"" ??##??#??##?##?????????????? | | ?# # """ """ # #??##?#????#??????????????? | | ## # """ """ #? ?????#????????????????????? | | ## # ?""" """ ####+################ ?????????? | | # ? h au=%%%| w ?????????? | | #######+###### *!a #????????? | | [[ * k k #????????? | | [@ #????????? | | ##+##+### """"""" ? ??????????? | | ??? #?# k """""?"??????????????? | | =### """""???? ???????????? | | """ ### """"""???????????????? | | """ #?# k ????????????????? | | """ !#?# """""" """"""?? ????????????? | | #?# """""" """""??? ????????????? | | ?################ """""" """""????????????????? | | ???? ??????#???# """""" """??"???????????????? | | ?"?????????#??#?# ? ? ? ???????????????? | | ??? ?"?? #?#?### """"?"" """ ????????????????? | | ????? "?? ##????# """""?" """ ????????????????? | | ??????"???????#?# "?""??" "?? ?????????????????? | | ????????????????# "?"??"? ????????????????????? | | ???????????????? ??????? ????????????????????? | | ????????????????? ?????????????????????????????? | | ?????????????????????????????????????????????????? | | ?????????????????????????????????????????????????? | | ?????????????????????????????????????????????????? | | ?????????????????????????????????????????????????? | | ?????????????????????????????????????????????????? | | ?????????????????????????????????????????????????? | | ?????????????????????????????????????????????????? | | ?????????????????????????????????????????????????? | +----------------------------------------------------+ Best States ------------- Heat Dissipation 61 Energy Generation 14 Energy Capacity 375 Matter Stores 400 Matter Capacity 450 Sight Range 16 Robot Scan Range 15 Terrain Scan Range 16 Terrain Scan Density 210 ECM Strength 1 Jamming Range 12 Additional Mass Support 9 Armor Coverage 225 Resistance: TH 10 Evasion (%) 55 Recoil Reduction 4 Item Schematics ----------------- Lgt. Armor Plating | -10/Materials | Hacked Hammer | -10/Materials | Hacked Lgt. Treads | -10/Materials | Hacked Robot Schematics ------------------ None Fabricated ------------ Nothing Repaired ---------- Nothing Studied --------- None Alien Tech Used ----------------- None Achievements -------------- Ghost 'Em Challenges ------------ None Game ------ Seed SegregatorFlightCanceller Manual? 0 Play Time 00:42:53 Cumulative 148.5 hours Start 2025.12.29 @ 16:12:05 End 2025.12.30 @ 15:28:49 Sessions 3 Manual Loads 0 Difficulty Rogue Special Mode None Game No. 254 Rogue 250 Adventurer 0 Explorer 4 Win Type - Total 0 Types 0/0/0/0/0/0/0/0/0/0 Lore% 18 Gallery% 40 Achievement% 23 Wizard Run 0 Options --------- Layout 1 ASCII 0 Keyboard 1 Movement Arrows Keybinds 0 Fullscreen 1 Font 32/SmallcapsGlow Map View 130x35 Zoom Use 0% Tactical HUD 1 Map Filters NONE Filters NONE Steam 1 RUN: a7a20122-92e3-4988-ba5f-6bc745778ab8